[Event "1000 GM Labor Day Super Swiss 2024"]
[Site "San Jose"]
[Date "2024.08.31"]
[Round "2.12"]
[White "Kiewra, Keaton"]
[Black "Biyiasas, Theodore"]
[Result "1-0"]
[Annotator "TA"]
[ECO "A11"]
[WhiteElo "2287"]
[BlackElo "1973"]
[PlyCount "69"]
[EventDate "2024.08.30"]
[EventCountry "USA"]
[SourceTitle "playchess.com"]
[Source "ChessBase"]
[SourceQuality "1"]
[TimeControl "5400+30"]

{[%evp 15,68,0,0,-51,-64,-72,-11,-24,-22,-73,-8,-4,13,13,35,32,28,39,74,87,69,69,73,63,60,55,76,36,48,0,84,81,77,34,38,29,29,21,177,178,178,180,189,181,181,129,164,117,229,229,895,893,29998,29999,29999]} 1. Nf3 {[%emt 0:02:47]} d5 {[%emt 0:00:24]} 2. b3 {[%emt 0:00:18]} Nf6 {[%emt 0:00:44]} 3. Bb2 {[%emt 0:00:07]} e6 {[%emt 0:00:18]} 4. c4 {[%emt 0:03:19]} Nbd7 {[%emt 0:03:13]} 5. e3 {[%emt 0:00:57]} Bd6 {[%emt 0:00:41]} 6. Nc3 {[%emt 0:01:16]} O-O {[%emt 0:07:42]} 7. Qc2 {[%emt 0:01:17]} c6 {[%emt 0:05:29]} 8. Be2 {[%emt 0:01:51]} Re8 {[%emt 0:07:30]} 9. g4 {[%emt 0:08:42]} Nxg4 $15 {[%emt 0:07:05]} 10. Rg1 {[%emt 0:00:31]} f5 {[%emt 0:14:59]} (10... Nxh2 $6 11. Rxg7+ Kxg7 12. Ne4+ e5 13. Nxd6 Nxf3+ 14. Bxf3 $11) (10... Ngf6 $17) 11. h3 {[%emt 0:02:26] The position is equal.} Nge5 {[%emt 0:05:09]} 12. Nd4 {[%emt 0:02:56]} (12. cxd5 $11 Nxf3+ (12... cxd5 13. Nb5 $11) (12... exd5 13. Nd4 $11) 13. Bxf3 exd5 (13... cxd5 14. Nb5 $11) 14. O-O-O (14. Nxd5 Ne5 $17)) 12... Nf6 {[%emt 0:03:35]} (12... dxc4 $17 13. bxc4 c5) 13. cxd5 $11 {[%emt 0:04:31]} cxd5 {[%emt 0:04:23]} 14. Ncb5 {[%emt 0:01:45] Hoping for Nxd6.} a6 {[%emt 0:14:46]} 15. Nxd6 {[%emt 0:00:36]} Qxd6 {[%emt 0:00:02]} 16. Rc1 {[%emt 0:03:29]} Rf8 {[%emt 0:02:32][%cal Of5f4]} 17. Qc7 {[%emt 0:06:55]} Qxc7 {[%emt 0:04:20]} 18. Rxc7 {[%emt 0:00:05]} Ng6 {[%emt 0:00:54]} 19. Nf3 {[%emt 0:02:00][%mdl 1024] White has strong compensation. White has more active pieces.} Ne8 $1 {[%emt 0:04:09]} 20. Rc1 {[%emt 0:00:13]} Bd7 {[%emt 0:06:21]} 21. Ba3 {[%emt 0:03:54]} Rf6 {[%emt 0:00:12]} 22. Bb2 {[%emt 0:00:38]} Rf8 {[%emt 0:00:03]} 23. h4 $1 {[%emt 0:01:19] Strongly threatening h5.} Rc8 {[%emt 0:00:36]} 24. Rxc8 {[%emt 0:00:09]} Bxc8 {[%emt 0:00:03]} 25. h5 $36 {[%emt 0:00:27][%mdl 2048] White is more active.} Nh8 {[%emt 0:00:27]} 26. h6 {[%emt 0:03:39] Black is weak on the dark squares} Ng6 $2 {[%emt 0:02:20]} (26... g6 $11 {and Black stays safe.}) 27. hxg7 $1 $18 {[%emt 0:02:51]} Nxg7 {[%emt 0:00:16]} 28. Ne5 $1 {[%emt 0:00:19] Dodges Rf7} Nxe5 {[%emt 0:02:34]} 29. Bxe5 {[%emt 0:00:06]} Rf7 {[%emt 0:00:07]} 30. f4 {[%emt 0:00:55]} (30. a4 $18) 30... Kf8 {[%emt 0:03:12]} 31. Kf2 {[%emt 0:00:11]} ({Better is} 31. a4 $18) 31... Bd7 {[%emt 0:00:17] [#]} (31... b5 $16 {keeps fighting.} 32. Rh1 Ne8) 32. Bd6+ $1 {[%emt 0:00:32] This pair of bishops is nice.} Ke8 $2 {[%emt 0:00:24] [#]} (32... Kg8 33. Bh5 Bb5 34. Bxf7+ Kxf7) 33. Bh5 $1 {[%emt 0:00:14][%mdl 512]} Nxh5 {[%emt 0:00:13]} (33... Bc6 34. Rxg7) 34. Rg8+ {[%emt 0:00:04]} Rf8 {[%emt 0:00:06]} 35. Rxf8# {[%emt 0:00:04] Weighted Error Value: White=0.15 (very precise) /Black=0.54.  Mistake:       	White=3     	Black=5      Inaccurate:     	White=2     	Black=2      OK:         	White=8     	Black=9      Best:        	White=1     	Black=1      Strong:       	White=3     	Black=1      Brilliant:      	White=1     	---} 1-0

[Event "1000 GM Labor Day Super Swiss 2024"]
[Site "San Jose"]
[Date "2024.08.31"]
[Round "2.13"]
[White "Tang, Dylan"]
[Black "Guo, Andrew"]
[Result "1/2-1/2"]
[Annotator "TA"]
[ECO "B33"]
[WhiteElo "2092"]
[BlackElo "2207"]
[PlyCount "86"]
[EventDate "2024.08.30"]
[EventCountry "USA"]
[SourceTitle "playchess.com"]
[Source "ChessBase"]
[SourceQuality "1"]
[TimeControl "5400+30"]

{[%evp 28,86,8,0,0,0,0,0,0,0,0,0,3,0,0,-3,91,92,88,-12,0,0,4,8,8,8,8,0,0,0,0,0,0,0,0,0,0,0,0,0,0,0,0,0,0,0,0,0,0,0,0,0,0,0,0,0,0,0,0,0,0]} 1. e4 {[%emt 0:03:59]} c5 {[%emt 0:00:01]} 2. Nf3 {[%emt 0:00:44]} Nc6 {[%emt 0:00:00]} 3. d4 {[%emt 0:00:02]} cxd4 {[%emt 0:00:02]} 4. Nxd4 {[%emt 0:00:10]} Nf6 {[%emt 0:00:01]} 5. Nc3 {[%emt 0:00:02]} e5 {[%emt 0:00:01]} 6. Ndb5 {[%emt 1:28:33]} d6 {[%emt 1:33:25]} 7. Bg5 {[%emt 0:00:00]} a6 {[%emt 0:00:00]} 8. Na3 {[%emt 0:00:00]} b5 {[%emt 0:00:00]} 9. Nd5 {[%emt 0:00:00]} Be7 {[%emt 0:00:00]} 10. Bxf6 {[%emt 0:02:00]} Bxf6 {[%emt 0:00:00]} 11. c3 {[%emt 0:00:30]} Bg5 {[%emt 0:00:00]} 12. Nc2 {[%emt 0:00:30]} Rb8 {[%emt 0:00:00]} 13. a4 {[%emt 0:00:00]} bxa4 {[%emt 0:03:30]} 14. Ncb4 {[%emt 0:00:00]} Nxb4 {[%emt 0:00:00]} 15. Nxb4 {[%emt 0:00:00]} Bd7 {[%emt 0:00:00] Prevents Nc6. ...a5 would now be deadly.} 16. Bxa6 {[%emt 0:00:00][%cal Oa6d3]} Qa5 {[%emt 0:00:00]} 17. Qxd6 {[%emt 0:00:00]} Rb6 {[%emt 0:00:00]} 18. Qd3 {[%emt 0:00:00]} Be6 {[%emt 0:00:00] [#] White must now prevent ...Be7. A strong pair of Bishops.} 19. O-O {[%emt 0:00:00]} O-O {[%emt 0:00:00]} 20. Rfd1 {[%emt 0:00:00]} Be7 {[%emt 0:03:30]} 21. Bc4 {[%emt 0:00:00]} Bxc4 {[%emt 0:00:00]} (21... Bxb4 $11 22. cxb4 Qxb4 23. Bxe6 Rxe6) 22. Qxc4 $16 {[%emt 0:00:00]} Bxb4 {[%emt 0:00:00] [#]} 23. cxb4 {[%emt 0:00:00] White is more active.} (23. Rd5 $1 $16 {[%cal Rd5a5]} Qa6 24. Qxa6 Rxa6 25. cxb4) 23... Qxb4 {[%emt 0:00:00] The position is equal.} 24. Rxa4 {[%emt 0:00:00][%cal Ba1a4,Ba4c4,Bc4c5][%mdl 32]} Qxc4 {[%emt 0:00:00]} 25. Rxc4 {[%emt 0:00:00]} Rxb2 $11 {[%emt 0:00:00][%mdl 4096] Endgame. KRR-KRR} 26. Rc5 {[%emt 0:00:00]} f6 {[%emt 0:00:00]} 27. Rc7 {[%emt 0:07:30]} Rfb8 {[%emt 0:00:00]} 28. h4 {[%emt 0:00:00] Threatens to win with Rdd7.} Rb1 {[%emt 0:00:00]} 29. Rxb1 {[%emt 0:00:00]} Rxb1+ {[%emt 0:00:00] KR-KR} 30. Kh2 {[%emt 0:00:00]} h5 {[%emt 0:00:00]} 31. f3 {[%emt 0:00:00]} Kh7 {[%emt 0:00:00]} 32. Kg3 {[%emt 0:00:00]} Kg6 {[%emt 0:00:00]} 33. Ra7 {[%emt 0:00:00]} Rc1 {[%emt 0:00:00]} 34. Rb7 {[%emt 0:00:00]} Rh1 {[%emt 0:00:00]} 35. Rc7 {[%emt 0:00:00]} Ra1 {[%emt 0:00:00]} 36. Rc8 {[%emt 0:00:00]} Rb1 {[%emt 0:00:00]} 37. Ra8 {[%emt 0:00:00]} Rc1 {[%emt 0:00:00]} 38. Ra7 {[%emt 0:00:00]} Rb1 {[%emt 0:00:00]} 39. Rd7 {[%emt 0:00:00]} Rc1 {[%emt 0:00:00]} 40. Ra7 {[%emt 0:00:00]} Rb1 {[%emt 0:00:00]} 41. Rc7 {[%emt 0:00:00]} Ra1 {[%emt 0:00:00]} 42. Rb7 {[%emt 0:00:00]} Rc1 {[%emt 0:00:00]} 43. Ra7 {[%emt 0:00:00]} Rb1 {[%emt 0:00:00] Weighted Error Value: White=0.09 (flawless) /Black=0.09 (flawless) .  Mistake:       	White=1     	Black=1      OK:         	White=10    	Black=11     Best:        	White=2     	Black=2} 1/2-1/2

[Event "1000 GM Labor Day Super Swiss 2024"]
[Site "San Jose"]
[Date "2024.08.31"]
[Round "2.14"]
[White "Deng, Henry"]
[Black "Champsi, Imran"]
[Result "1/2-1/2"]
[Annotator "TA"]
[ECO "C50"]
[WhiteElo "2338"]
[BlackElo "2012"]
[PlyCount "104"]
[EventDate "2024.08.30"]
[EventCountry "USA"]
[SourceTitle "playchess.com"]
[Source "ChessBase"]
[SourceQuality "1"]
[TimeControl "5400+30"]

{[%evp 9,104,14,17,15,12,14,29,31,27,19,22,29,45,40,33,47,34,37,29,24,61,38,41,7,12,0,8,0,0,-44,-36,-45,0,0,0,0,0,0,0,0,0,0,0,0,0,0,0,0,0,0,0,6,12,13,13,13,13,0,0,0,0,0,0,0,0,0,0,0,0,0,0,0,0,0,0,0,0,0,0,0,0,0,0,0,0,0,0,0,0,0,0,0,0,0,0,0,0]} 1. e4 {[%emt 0:00:14]} e5 {[%emt 0:00:01]} 2. Nf3 {[%emt 0:00:08]} Nc6 {[%emt 0:00:02]} 3. Bc4 {[%emt 0:00:20]} Bc5 {[%emt 0:00:02]} 4. Nc3 {[%emt 0:00:11]} a6 {[%emt 0:01:08]} 5. d3 {[%emt 0:00:27]} h6 {[%emt 0:05:47]} 6. Be3 {[%emt 0:02:20]} Bxe3 {[%emt 0:01:33]} 7. fxe3 {[%emt 0:00:03]} d6 {[%emt 0:00:40]} 8. d4 {[%emt 0:03:59] White has an edge.} Nf6 {[%emt 0:08:03]} 9. O-O {[%emt 0:10:02]} O-O {[%emt 0:01:18]} 10. a3 {[%emt 0:03:21]} exd4 {[%emt 0:17:37]} 11. exd4 {[%emt 0:01:15]} Nxe4 {[%emt 0:00:43]} 12. Nxe4 {[%emt 0:01:01] [#] Black must now prevent Ng3.} d5 {[%emt 0:00:01]} 13. Bd3 {[%emt 0:02:12]} dxe4 {[%emt 0:00:05]} 14. Bxe4 {[%emt 0:00:04]} Ne7 {[%emt 0:03:42]} 15. Qe2 {[%emt 0:10:20] White is more active.} c6 {[%emt 0:03:54]} 16. Rad1 {[%emt 0:00:19]} Bg4 {[%emt 0:10:11]} 17. Qf2 {[%emt 0:06:56]} Nd5 {[%emt 0:10:20]} (17... f5 $5 18. Bd3 $8 Bxf3 19. gxf3 Ng6 $14) 18. h3 {[%emt 0:05:12]} Nf6 {[%emt 0:00:33]} 19. hxg4 {[%emt 0:05:11]} Nxe4 {[%emt 0:00:24]} 20. Qe3 {[%emt 0:46:55]} Ng5 {[%emt 0:04:47]} 21. Nxg5 {[%emt 0:00:00] The position is equal.} Qxg5 {[%emt 0:02:31]} 22. Qxg5 {[%emt 0:00:00]} hxg5 $11 {[%emt 0:00:06][%mdl 4096] Endgame. KRR-KRR} 23. d5 {[%emt 0:00:00]} cxd5 {[%emt 0:05:40]} 24. Rxd5 {[%emt 0:00:00]} f6 {[%emt 0:02:16]} 25. Rd7 {[%emt 0:00:00]} Rf7 {[%emt 0:13:20]} 26. Rfd1 {[%emt 0:00:00]} Rc8 {[%emt 0:01:32]} 27. Rxf7 {[%emt 0:00:00]} Kxf7 {[%emt 0:00:02] KR-KR} 28. Rd7+ {[%emt 0:00:00]} Ke6 {[%emt 0:00:20]} 29. Rxg7 {[%emt 0:00:00]} Rxc2 {[%emt 0:00:15]} 30. Rxb7 {[%emt 0:00:00]} Ke5 {[%emt 0:06:24]} 31. Kh2 {[%emt 0:00:00]} Rd2 {[%emt 0:00:02]} 32. Rb6 {[%emt 0:00:00]} a5 {[%emt 0:00:55]} 33. Kg3 {[%emt 0:00:00]} Rd3+ {[%emt 0:01:02]} 34. Kf2 {[%emt 0:00:00]} Kf4 {[%emt 0:01:39]} 35. Ke2 {[%emt 0:00:00]} Re3+ {[%emt 0:00:30]} 36. Kd2 {[%emt 0:00:00]} Rg3 {[%emt 0:00:25]} 37. Rxf6+ {[%emt 0:00:00]} Kxg4 {[%emt 0:00:04]} 38. Rf2 {[%emt 0:00:00]} Rb3 {[%emt 0:00:36]} 39. Ke1 {[%emt 0:00:00]} Kg3 {[%emt 0:00:41]} 40. Rc2 {[%emt 0:00:00]} g4 {[%emt 0:00:37]} 41. Kf1 {[%emt 0:00:00] [#] Hoping for Rc3+.} Kh2 {[%emt 0:00:16]} 42. Rc4 {[%emt 0:00:00]} Rxb2 {[%emt 0:00:22]} 43. Rxg4 {[%emt 0:00:00]} Rb1+ {[%emt 0:00:53]} 44. Ke2 {[%emt 0:00:00]} (44. Kf2 $5 Rb2+ $8 45. Kf1 $11) 44... Rb2+ {[%emt 0:00:32]} 45. Kd1 {[%emt 0:00:00]} Rxg2 {[%emt 0:00:02]} 46. Rh4+ {[%emt 0:00:00]} Kg3 {[%emt 0:00:19]} 47. Rh5 {[%emt 0:00:00]} Kf3 {[%emt 0:00:57]} 48. Rxa5 {[%emt 0:00:00]} Ke4 {[%emt 0:00:10]} 49. Kc1 {[%emt 0:00:00]} Kd4 {[%emt 0:00:23]} 50. Rb5 {[%emt 0:00:00]} Kc3 {[%emt 0:00:12][%cal Rg2g1]} 51. Rd5 {[%emt 0:00:00]} Rg1+ {[%emt 0:00:08]} 52. Rd1 {[%emt 0:00:00]} Rxd1+ {[%emt 0:00:09] Weighted Error Value: White=0.04 (flawless) /Black=0.03 (flawless) .  Inaccurate:     	White=2     	Black=2      OK:         	White=17    	Black=33     Best:        	White=2     	Black=1} 1/2-1/2

[Event "1000 GM Labor Day Super Swiss 2024"]
[Site "San Jose"]
[Date "2024.08.31"]
[Round "2.15"]
[White "Sivakumar, Shaashwath"]
[Black "Yan, Nathan"]
[Result "1/2-1/2"]
[Annotator "TA"]
[ECO "E05"]
[WhiteElo "2321"]
[BlackElo "2160"]
[PlyCount "66"]
[EventDate "2024.08.30"]
[EventCountry "USA"]
[SourceTitle "playchess.com"]
[Source "ChessBase"]
[SourceQuality "1"]
[TimeControl "5400+30"]

{[%evp 20,66,8,13,23,19,25,26,28,27,54,18,31,21,59,13,26,18,16,22,24,22,39,23,75,0,45,38,42,3,11,8,8,12,16,-30,0,0,0,0,0,-21,0,-33,-17,-22,0,0,2823]} 1. d4 {[%emt 0:01:06]} Nf6 {[%emt 0:07:06]} 2. c4 {[%emt 0:00:14]} e6 {[%emt 0:00:58]} 3. g3 {[%emt 0:00:08]} d5 {[%emt 0:00:06]} 4. Nf3 {[%emt 0:00:04]} Be7 {[%emt 0:00:33]} 5. Bg2 {[%emt 0:00:06]} O-O {[%emt 0:00:06]} 6. O-O {[%emt 0:00:05]} dxc4 {[%emt 0:00:20]} 7. Qc2 {[%emt 0:00:04]} a6 {[%emt 0:00:02]} 8. a4 {[%emt 0:00:05]} Bd7 {[%emt 1:25:19][%cal Bc8d7,Bd7c6,Bc6e4][%mdl 32]} 9. Qxc4 {[%emt 0:00:22]} Bc6 {[%emt 0:00:00]} 10. Bf4 {[%emt 0:01:22]} Nbd7 {[%emt 0:00:00][%cal Bb8d7,Bd7b6,Bb6d5,Bd5c3][%mdl 32]} 11. Nc3 {[%emt 0:08:10]} Nb6 {[%emt 0:00:00]} 12. Qb3 {[%emt 0:05:30]} Nbd5 {[%emt 0:00:00]} 13. Bd2 {[%emt 0:04:12]} Nxc3 {[%emt 0:00:00] White has an edge.} 14. bxc3 {[%emt 0:00:09]} Be4 {[%emt 0:00:00]} 15. Rfd1 {[%emt 0:13:21]} c5 {[%emt 0:00:00]} 16. Bg5 {[%emt 0:04:40]} Nd5 {[%emt 0:00:00]} 17. Bxe7 {[%emt 0:07:25]} (17. c4 $14) 17... Qxe7 $11 {[%emt 0:00:00]} 18. Ne5 {[%emt 0:02:53]} Bxg2 {[%emt 0:00:00]} 19. Kxg2 {[%emt 0:00:04]} cxd4 {[%emt 0:00:00]} 20. cxd4 {[%emt 0:00:09]} Rfc8 {[%emt 0:00:00]} 21. Rdc1 {[%emt 0:08:06]} Qb4 {[%emt 0:00:00]} (21... a5 $11) 22. Qd3 {[%emt 0:09:25]} ({White should try} 22. Qxb4 $16 Nxb4 23. e4) 22... Rc3 {[%emt 0:00:00]} (22... Rxc1 $5 23. Rxc1 Qxa4 $14) 23. Rxc3 {[%emt 0:02:12]} Qxc3 {[%emt 0:00:00]} 24. Rb1 {[%emt 0:00:20]} f6 {[%emt 0:00:00]} 25. Rb3 {[%emt 0:00:25]} Qc7 {[%emt 0:00:00]} 26. Nf3 {[%emt 0:00:23]} Rc8 {[%emt 0:00:00]} 27. h4 {[%emt 0:11:55]} (27. a5 $142) 27... Nc3 {[%emt 0:00:00][%cal Oa6a5]} 28. a5 {[%emt 0:01:40]} Nb5 {[%emt 0:00:00]} 29. Qe4 {[%emt 0:02:23]} Qc6 {[%emt 0:00:00]} 30. Qf4 {[%emt 0:00:27]} Qd5 {[%emt 0:00:00]} 31. Rb2 {[%emt 0:04:34]} Nd6 {[%emt 0:00:00]} 32. h5 {[%emt 0:14:31]} Nc4 {[%emt 0:12:00]} 33. e4 {[%emt 0:00:30]} Nd6 $2 {[%emt 0:00:30][%mdl 40960] Weighted Error Value: White=0.17 (very precise) /Black=0.14 (very precise) .  Loses game:     	---       	Black=1      Mistake:       	White=3     	Black=1      Inaccurate:     	White=3     	Black=4      OK:         	White=8     	Black=7     . An unexpected result.} 1/2-1/2

[Event "1000 GM Labor Day Super Swiss 2024"]
[Site "San Jose"]
[Date "2024.08.31"]
[Round "2.17"]
[White "Bansal, Advay"]
[Black "Alfaro, William"]
[Result "1/2-1/2"]
[Annotator "RC"]
[ECO "B31"]
[WhiteElo "2234"]
[BlackElo "2137"]
[PlyCount "91"]
[EventDate "2024.08.30"]
[EventCountry "USA"]
[SourceTitle "playchess.com"]
[Source "ChessBase"]
[SourceQuality "1"]
[TimeControl "5400+30"]

1. e4 {[%emt 0:00:01]} c5 {[%emt 0:10:23]} 2. Nf3 {[%emt 0:00:17]} Nc6 {[%emt 0:00:31]} 3. Bb5 {[%emt 0:00:19]} g6 {[%emt 0:00:24]} 4. O-O {[%emt 0:00:29]} Bg7 {[%emt 0:00:02]} 5. c3 {[%emt 0:00:18]} Nf6 {[%emt 0:00:40]} 6. Re1 {[%emt 0:00:06]} O-O {[%emt 0:00:11]} 7. d4 {[%emt 0:00:11]} d5 {[%emt 0:00:19]} 8. e5 {[%emt 0:00:15]} Ne4 {[%emt 0:00:06]} 9. Bxc6 {[%emt 0:00:07]} bxc6 {[%emt 0:00:37]} 10. Be3 {[%emt 0:00:09]} cxd4 {[%emt 0:00:05]} 11. cxd4 {[%emt 0:00:09]} Rb8 {[%emt 0:01:36]} 12. Qc1 {[%emt 0:01:10]} f6 {[%emt 0:04:03]} 13. Nbd2 {[%emt 0:13:31]} g5 {[%emt 0:11:50]} 14. Qxc6 {[%emt 0:12:13]} Rxb2 {[%emt 0:18:09]} 15. Nxe4 {[%emt 0:08:48]} dxe4 {[%emt 0:00:10]} 16. Qxe4 {[%emt 0:03:54]} g4 {[%emt 0:10:20]} 17. exf6 {[%emt 0:01:58]} exf6 {[%emt 0:00:10]} 18. Nd2 {[%emt 0:00:29]} f5 {[%emt 0:00:48]} 19. Qf4 {[%emt 0:01:14]} Bb7 {[%emt 0:01:29]} 20. Rab1 {[%emt 0:09:18]} Qd5 {[%emt 0:03:03]} 21. f3 {[%emt 0:00:15]} Rxa2 {[%emt 0:07:07]} 22. Rbc1 {[%emt 0:01:15]} gxf3 {[%emt 0:09:26]} 23. Nxf3 {[%emt 0:01:30]} Qe4 {[%emt 0:03:10]} 24. Qxe4 {[%emt 0:06:40]} Bxe4 {[%emt 0:01:03]} 25. Ra1 {[%emt 0:00:52]} Rb2 {[%emt 0:04:03]} 26. Rxa7 {[%emt 0:08:01]} Bxf3 {[%emt 0:07:33]} 27. gxf3 {[%emt 0:00:08]} f4 {[%emt 0:00:02]} 28. Bf2 {[%emt 0:00:14]} Rc8 {[%emt 0:02:24]} 29. d5 {[%emt 0:03:42]} Rd2 {[%emt 0:03:26]} 30. Rd7 {[%emt 0:01:28]} Rcc2 {[%emt 0:00:50]} 31. Re8+ {[%emt 0:12:50]} Bf8 {[%emt 0:00:02]} 32. Rdd8 {[%emt 0:00:34]} Rxf2 {[%emt 0:00:15]} 33. Rxf8+ {[%emt 0:00:03]} Kg7 {[%emt 0:00:04]} 34. Rg8+ {[%emt 0:00:19]} Kf6 {[%emt 0:00:54]} 35. Rdf8+ {[%emt 0:00:52]} Ke5 {[%emt 0:00:18]} 36. Rg5+ {[%emt 0:01:08]} Kd4 {[%emt 0:02:57]} 37. Re8 {[%emt 0:14:13]} Rfd2 {[%emt 0:00:30]} 38. Ree5 {[%emt 0:00:30]} Kc5 {[%emt 0:00:00]} 39. Re1 {[%emt 0:00:00]} Rxd5 {[%emt 0:00:05]} 40. h4 {[%emt 0:00:00]} Rcd2 {[%emt 0:00:24]} 41. Ree5 {[%emt 0:00:00]} Rxe5 {[%emt 0:00:32]} 42. Rxe5+ {[%emt 0:00:00]} Rd5 {[%emt 0:00:01]} 43. Re4 {[%emt 0:00:00]} Rd4 {[%emt 0:00:01]} 44. Re7 {[%emt 0:00:00]} h5 {[%emt 0:01:33]} 45. Rg7 {[%emt 0:00:22]} Rd5 {[%emt 0:00:37]} 46. Rf7 {[%emt 0:00:37]} 1/2-1/2

[Event "1000 GM Labor Day Super Swiss 2024"]
[Site "San Jose"]
[Date "2024.08.31"]
[Round "2.18"]
[White "Harish, Neeraj"]
[Black "Chinni, Rishabh"]
[Result "0-1"]
[Annotator "TA"]
[ECO "A13"]
[WhiteElo "2118"]
[BlackElo "2220"]
[PlyCount "108"]
[EventDate "2024.08.30"]
[EventCountry "USA"]
[SourceTitle "playchess.com"]
[Source "ChessBase"]
[SourceQuality "1"]
[TimeControl "5400+30"]

{[%evp 9,108,18,42,42,48,48,67,77,97,68,67,77,99,85,95,101,110,74,139,-70,-92,-108,-18,-12,0,0,0,0,0,0,8,0,0,-22,0,0,0,0,0,-26,-27,-145,-156,-141,-138,-168,-172,-162,-158,-227,-205,-177,-145,-129,-25,-31,-31,-145,-143,-130,-100,-72,-35,-35,-35,-509,-489,-2525,-2152,-29971,-29973,-29971,-29973,-29974,-29976,-29976,-29975,-29978,-29979,-29980,-29981,-29981,-29982,-29982,-29983,-29983,-29984,-29984,-29985,-29985,-29985,-29985,-29985,-29987,-29986,-29986,-29987,-29987,-29988,-29988,-29989]} 1. c4 {[%emt 0:00:21]} Nf6 {[%emt 0:00:24]} 2. Nf3 {[%emt 0:00:05]} e6 {[%emt 0:00:20]} 3. g3 {[%emt 0:00:11]} d5 {[%emt 0:00:24]} 4. Bg2 {[%emt 0:00:16]} c5 {[%emt 0:02:12]} 5. O-O {[%emt 0:00:41]} Bd6 {[%emt 0:00:56]} 6. cxd5 {[%emt 0:02:10]} exd5 {[%emt 0:00:17]} 7. d4 {[%emt 0:00:13]} c4 {[%emt 0:02:41]} 8. Bg5 {[%emt 0:02:34] White is slightly better.} O-O {[%emt 0:06:08]} 9. Nc3 {[%emt 0:01:09] And now Nxd5 would win.} Be7 {[%emt 0:01:11]} 10. b3 {[%emt 0:03:42]} Qa5 {[%emt 0:05:45]} 11. Bxf6 {[%emt 0:06:15]} Bxf6 {[%emt 0:00:14]} 12. Rc1 {[%emt 0:00:26]} Nc6 {[%emt 0:03:37]} 13. e4 {[%emt 0:06:02]} Bg4 {[%emt 0:28:32]} (13... cxb3 $142 14. Nxd5 bxa2 (14... Qxa2 $2 15. Nxf6+ gxf6 16. d5 $16)) 14. e5 $2 {[%emt 0:08:21]} (14. Nxd5 $16 Bxd4 15. Rxc4) 14... Bg5 $15 {[%emt 0:01:07]} 15. Rc2 {[%emt 0:01:53]} cxb3 {[%emt 0:10:31] Black has more active pieces.} ({Black should try} 15... Be7 $1 $17 16. Qd2 Rad8) 16. axb3 $11 {[%emt 0:01:11]} Bh6 {[%emt 0:01:07]} (16... Nb4 $5 17. Rb2 $8 Qc7 $11) 17. Ne2 {[%emt 1:03:30]} Nb4 {[%emt 0:03:44]} 18. Rc5 {[%emt 0:00:00]} Qa6 {[%emt 0:00:03]} 19. h3 $1 {[%emt 0:00:00]} Bf5 {[%emt 0:01:41]} 20. g4 {[%emt 0:00:00]} Bd3 {[%emt 0:03:41]} 21. Ng3 {[%emt 0:00:00][%cal Og4g5]} b6 $36 {[%emt 0:03:35][%mdl 2048] Black has good play.} (21... g6 $5) 22. Rc3 {[%emt 0:00:00][%cal Og4g5] Strongly threatening g5!} g6 $1 {[%emt 0:00:39]} 23. Re1 {[%emt 0:00:00]} Bf4 {[%emt 0:00:53]} 24. Qa1 {[%emt 0:00:00]} Rac8 {[%emt 0:02:38]} 25. Qxa6 {[%emt 0:00:00]} (25. Qb2 $1 $11) 25... Bxa6 $17 {[%emt 0:00:12] A strong pair of Bishops.} 26. Rxc8 {[%emt 0:00:00]} Rxc8 {[%emt 0:00:15]} 27. Ra1 {[%emt 0:00:00]} Rc1+ {[%emt 0:01:57]} 28. Rxc1 {[%emt 0:00:00]} Bxc1 {[%emt 0:00:02]} 29. Nf1 {[%emt 0:00:00]} (29. Bf1 $17 {is a better defense.}) 29... Bd3 {[%emt 0:08:13]} 30. Ne3 {[%emt 0:00:00]} Be4 {[%emt 0:01:15] ...a5 would now be deadly.} 31. Ne1 {[%emt 0:00:00]} Bxg2 {[%emt 0:00:19]} (31... Bb2 $17 32. Bxe4 dxe4) 32. Kxg2 {[%emt 0:00:00][%mdl 4096] Endgame. KBN-KNN} a5 {[%emt 0:02:11]} 33. N1c2 {[%emt 0:00:00]} (33. Kf3 $1 $15) 33... Nxc2 {[%emt 0:00:44]} 34. Nxc2 {[%emt 0:00:00] KB-KN} b5 {[%emt 0:01:09] Hoping for ...b4.} 35. Kf3 {[%emt 0:00:00]} Kf8 {[%emt 0:05:00][%cal Of7f6]} 36. Ke2 {[%emt 0:00:00]} Ke7 {[%emt 0:00:25]} 37. Ne3 $2 {[%emt 0:00:00][%mdl 8192] Now White is beyond hope.} (37. Kd3 $15) 37... Bxe3 $1 $19 {[%emt 0:02:51]} 38. Kxe3 {[%emt 0:00:00] [#] KP-KP} (38. fxe3 $142 f6 39. exf6+ Kxf6 40. Kd3) 38... g5 $1 {[%emt 0:00:03]} 39. b4 {[%emt 0:00:00]} axb4 {[%emt 0:00:51] Black mates.} 40. Kd3 {[%emt 0:00:00]} Kd7 {[%emt 0:00:12]} 41. Kc2 {[%emt 0:00:00]} Kc6 {[%emt 0:00:34]} 42. Kb3 {[%emt 0:00:00]} Kb7 {[%emt 0:00:38]} 43. Kxb4 {[%emt 0:02:25] [#]} Kb6 $1 {[%emt 0:00:12]} 44. f3 {[%emt 0:00:11]} h6 {[%emt 0:00:07]} 45. Kc3 {[%emt 0:00:43]} Ka5 {[%emt 0:00:07]} 46. f4 {[%emt 0:00:23]} b4+ {[%emt 0:01:08]} 47. Kd3 {[%emt 0:00:13]} gxf4 {[%emt 0:01:08]} 48. h4 {[%emt 0:01:18]} f3 {[%emt 0:00:03]} 49. g5 {[%emt 0:00:25]} f2 {[%emt 0:00:13]} 50. Ke2 {[%emt 0:00:05]} b3 {[%emt 0:00:07]} 51. g6 {[%emt 0:01:31]} b2 {[%emt 0:00:05]} 52. gxf7 {[%emt 0:00:09] [#]} f1=Q+ $1 {[%emt 0:00:24][%mdl 512]} 53. Kxf1 {[%emt 0:00:07]} b1=Q+ {[%emt 0:00:05]} (53... b1=R+ $2 {too greedy.} 54. Ke2 Rb8 55. e6 $18) 54. Ke2 {[%emt 0:00:24]} Qf5 {[%emt 0:00:04] Weighted Error Value: White=0.50/Black=0.11 (very precise) .  Loses game:     	White=1     	---        Mistake:       	White=5     	Black=3      Inaccurate:     	White=3     	Black=1      OK:         	White=11    	Black=10     Best:        	White=2     	Black=1      Strong:       	White=1     	Black=3} 0-1